Cogmind - Beta 16.1 @@@ ROGUE MODE // 2026.05.03 @ 15:13:09 Player: Stavbearer Result: Destroyed by VJ-9IC(x) with Makeshift Spear Performance ------------- Evolutions (0) 0 Regions Visited (3) 600 Robots Destroyed (17) 85 Value Destroyed (434) 434 Prototype IDs (8) 160 Alien Tech Used (0) 0 Bonus (679) 679 TOTAL SCORE: 1958 Bonus ------- Registered with UFD 300 Met Optimus in HQ 500 Friendly Fire -121 Cogmind --------- Core Integrity 0/250 Matter 300/300 Energy 100/100 System Corruption 2% Temperature Cool (0) Movement Core (150) Ox2 Location -7/Scraptown Parts ------- > --- POWER (1) -------- (None) > --- PROPULSION (2) --- (None) > --- UTILITY (2) ------ Small Storage Unit > --- WEAPON (2) ------- Makeshift Sword > --- INVENTORY (8) ---- VSS Leg VSS Leg Scrap Suit Hacking Suite Makeshift Hacking Suite Peak State ------------ > --- POWER ------------ Micro Fission Core > --- PROPULSION ------- VSS Leg VSS Leg > --- UTILITY ---------- Small Storage Unit Makeshift Light Armor Plating > --- WEAPON ----------- Overtuned Barrage Gun Gauss Rifle > --- INVENTORY -------- Improved Deuterium Engine Scrap Suit Hacking Suite Makeshift Hacking Suite Makeshift Sword [Rating: 26] Favorites ----------- Power Improved Deuterium Engine Engine Improved Deuterium Engine Power Core Micro Fission Core Propulsion Wheel Leg Overtuned Titanium Leg Wheel Wheel Utility Small Storage Unit Device IFF Parser Storage Small Storage Unit Protection Makeshift Light Armor Plating Weapon Gauss Rifle Energy Gun Overtuned Pulse Rifle Ballistic Gun Gauss Rifle Slashing Weapon Makeshift Sword Build | -11 -10 -10 -7 ------- Run | Yrd Mat Sub Scr Slots Evolved . | . . . . Power . | . . . . Propulsion . | . . . . Utility . | . . . . Weapon . | . . . . Parts Attached 25 | 7 . 3 15 Power 5 | 1 . 1 3 Engine 4 | 1 . 1 2 Core 1 | . . . 1 Reactor . | . . . . Propulsion 9 | 2 . 1 6 Treads . | . . . . Leg 6 | . . . 6 Wheel 3 | 2 . 1 . Hover . | . . . . Flight . | . . . . Utility 4 | 2 . . 2 Device 2 | 1 . . 1 Storage 1 | 1 . . . Processor . | . . . . Hackware . | . . . . Protection 1 | . . . 1 Artifact . | . . . . Weapon 7 | 2 . 1 4 Energy Gun 1 | . . . 1 Energy Cannon . | . . . . Ballistic Gun 5 | 2 . 1 2 Ballistic Cannon . | . . . . Launcher . | . . . . Special Weapon . | . . . . Impact Weapon . | . . . . Slashing Weapon 1 | . . . 1 Piercing Weapon . | . . . . Special Melee Weapon . | . . . . Unidentified Prototypes . | . . . . Corrupted Parts 1 | . . . 1 System Corruption 2 | . . . 2 Parts Lost 10 | . . . 10 Power 2 | . . . 2 Propulsion 2 | . . . 2 Utility 2 | . . . 2 Weapon 4 | . . . 4 Highest Loss Streak 6 | . . . 6 To Critical Strikes . | . . . . Average Backups 6 | 2 4 6 7 Power 1 | . 1 1 1 Propulsion . | . 1 1 . Utility 2 | . 1 2 2 Weapon 1 | . 1 1 1 Tool/Special . | . . . . Unused Backups 9 | . . . 9 Power 1 | . . . 1 Propulsion 1 | . . . 1 Utility 5 | . . . 5 Weapon 1 | . . . 1 Tool/Special 1 | . . . 1 Average Slot Usage (%) 98 | . 100 100 98 Engine 13 | . 14 14 12 Leg 3 | . . . 4 Wheel 24 | . 28 28 23 Device 11 | . 14 14 11 Storage 14 | . 14 14 14 Protection 1 | . . . 1 Ballistic Gun 27 | . 28 28 27 Peak Build Rating 26 | 7 7 9 26 Average Rating 17 | 5 7 7 19 On Entrance 5 | . 7 7 9 Avg Prop Armor Cover (%) 7 | . . . 7 Naked Turns . | . . . . Heaviest Build 25 | 14 14 14 25 Greatest Support 38 | 26 26 26 38 Greatest Overweight (x) 1 | . . . 1 Average Overweight (x) . | . . . . Largest Inventory Capacity 8 | 8 8 8 8 Average Capacity 7 | 6 8 8 8 Most Carried 8 | 4 5 8 8 Average Carried 7 | 2 4 6 7 Final Capacity 8 | 8 8 8 8 Final Carried 8 | 4 5 8 6 Class Distribution -------------------- 91% | Mutant 8% | Scavenger-Mutant Dominant Class ---------------- Mutant | -10/Materials Mutant | -10/Subcaves Mutant | -7/Scraptown Resources | -11 -10 -10 -7 ----------- Run | Yrd Mat Sub Scr Matter Collected 754 | 265 29 62 398 Remotely . | . . . . Salvage Created 741 | 125 38 42 536 Parts 45 | 9 2 6 28 Haulers Intercepted . | . . . . Recyclers Shooed . | . . . . Parts Field Recycled . | . . . . Retrieved Matter . | . . . . Parts Self-Destructed 6 | . . 6 . Prevented . | . . . . Parts Restored . | . . . . Kills | -11 -10 -10 -7 ------- Run | Yrd Mat Sub Scr Combat Hostiles Destroyed 13 | . 1 3 9 Guns 13 | . 1 3 9 Classes Destroyed 8 | 2 1 1 4 Tunneler 2 | 2 . . . Recycler 1 | 1 . . . Swarmer 3 | . . 3 . Grunt 1 | . 1 . . Bolteater 1 | . . . 1 Federalist 3 | . . . 3 Explorer 2 | . . . 2 Scrapper 4 | . . . 4 Best Kill Streak 3 | 2 1 3 2 Combat Bots Only 3 | . 1 3 2 Max Kills in Single Turn 1 | 1 1 1 1 Gunslinging . | . . . . Exploded . | . . . . Melee . | . . . . Uniques/NPCs Destroyed . | . . . . Combat | -11 -10 -10 -7 -------- Run | Yrd Mat Sub Scr Hostile Shots Fired 167 | . . 34 133 Missed 40 | . . 11 29 Hits 127 | . . 23 104 Melee 5 | . . . 5 Projectile 122 | . . 23 99 Critical Strikes 5 | . . . 5 Damage Taken 1646 | . . 181 1465 Core 266 | . . 33 233 Absorbed by Shields . | . . . . Core Remaining (%) 100 | 100 . . . Volleys Fired 59 | 4 2 16 37 Largest 2 | 2 2 2 2 Hottest 80 | 40 40 45 80 Shots Fired 103 | 8 4 32 59 Gun 103 | 8 4 32 59 Cannon . | . . . . Launcher . | . . . . Special . | . . . . Kinetic 99 | 8 4 32 55 Thermal 4 | . . . 4 Explosive . | . . . . Electromagnetic . | . . . . Robot Hit Streak 11 | 4 1 7 11 Robot Miss Streak 4 | 1 2 4 3 Penetration Max . | . . . . Secondary Targets 3 | . . 3 . Max Gunslinging Chain 1 | . . 1 . Shots Hit Robots 61 | 5 1 17 38 Core Hits 27 | 4 1 5 17 Critical Kills 1 | . . . 1 Critical Parts Destroyed . | . . . . Critical Strikes 3 | . . . 3 Burn 1 | . . . 1 Destroy 1 | . . . 1 Sever 1 | . . . 1 Melee Attacks 3 | . . . 3 Impact . | . . . . Slashing 3 | . . . 3 Piercing . | . . . . Sneak Attacks . | . . . . Combat Hostiles . | . . . . Follow-up Attacks . | . . . . Damage Inflicted 993 | 47 15 182 749 Guns 915 | 47 15 182 671 Cannons . | . . . . Explosions . | . . . . Melee 78 | . . . 78 Ramming . | . . . . Kinetic 846 | 47 15 182 602 Thermal 69 | . . . 69 Explosive . | . . . . Electromagnetic . | . . . . Impact . | . . . . Slashing 78 | . . . 78 Piercing . | . . . . Highest Corruption 2 | . . . 2 Average Corruption 2 | . . . 2 Corruption Purged . | . . . . Corruption Blocked . | . . . . Effects 2 | . . . 2 Message Errors 1 | . . . 1 Matter Fused 1 | . . . 1 Overload Shots . | . . . . Overflow Damage . | . . . . Projectiles . | . . . . Explosions . | . . . . Melee . | . . . . Knockbacks . | . . . . Impact . | . . . . Kinetic . | . . . . Secondary . | . . . . Self-Inflicted Damage . | . . . . Shots . | . . . . Rammed . | . . . . Targets Rammed . | . . . . Kicked . | . . . . Crushed . | . . . . Highest Temperature 336 | . . 4 336 Average Temperature 123 | . . 4 124 Received Heat Transfer 791 | . . 84 707 Effects 3 | . . . 3 Energy Bleed 3 | . . . 3 Siege Activations . | . . . . Martial Activations . | . . . . Shielding Activations . | . . . . Robots Disrupted . | . . . . Combat Hostiles . | . . . . Robots Corrupted . | . . . . Combat Hostiles . | . . . . Parts Fried 1 | . . . 1 Impact Corruptions . | . . . . Robots Melted . | . . . . Combat Hostiles . | . . . . Parts Melted 5 | . 1 . 4 Heat Transferred 237 | . . . 237 Parts Sabotaged . | . . . . Parts Stolen . | . . . . Parts Stripped . | . . . . Power Chain Reactions . | . . . . Alert | -11 -10 -10 -7 ------- Run | Yrd Mat Sub Scr Maximum Alert Level . | . . . . Low Security (%) 100 | 100 100 . . Level 1 . | . . . . Level 2 . | . . . . Level 3 . | . . . . Level 4 . | . . . . Level 5 . | . . . . High Security . | . . . . Max Security . | . . . . Peak Influence 30 | 10 30 . . Initial 6 | . 6 . . Average 9 | 2 13 . . Influence Increases 153 | 15 48 90 . Destroy 0b10 Robot/C 80 | . 20 60 . Destroy 0b10 Robot/NC 15 | 15 . . . Successful Hack 13 | . 13 . . Lose Combat Pursuer 45 | . 15 30 . Influence Decreases 153 | 5 58 90 . Entered New Map 4 | . 4 . . Time Decay 149 | 5 54 90 . Squads Dispatched . | . . . . Investigation . | . . . . Extermination . | . . . . Reinforcement . | . . . . Assault . | . . . . Garrison . | . . . . Intercept . | . . . . Searches Triggered . | . . . . Construction Impeded . | . . . . Haulers Reinforced . | . . . . Active Scanning Responses . | . . . . Cargo Convoy Interrupts . | . . . . Stealth | -11 -10 -10 -7 --------- Run | Yrd Mat Sub Scr Distress Signals . | . . . . Communications Jammed . | . . . . Distress Signals . | . . . . Times Spotted 38 | . 3 7 28 Peak Tracking Total 9 | . 2 5 9 Tactical Retreats 5 | . 1 1 3 Traps | -11 -10 -10 -7 ------- Run | Yrd Mat Sub Scr Traps Triggered . | . . . . Indirectly . | . . . . Trap Hack Attempts . | . . . . Triggered . | . . . . Disarmed . | . . . . Reprogrammed . | . . . . Reused . | . . . . Traps Extracted . | . . . . Installed . | . . . . Triggered . | . . . . Machines | -11 -10 -10 -7 ---------- Run | Yrd Mat Sub Scr Machines Disabled 3 | . . . 3 Max in Single Turn 1 | . . . 1 Machines Repaired . | . . . . Machines Dismantled . | . . . . Machines Sabotaged . | . . . . Overloaded Fab Kills . | . . . . Hacking | -11 -10 -10 -7 --------- Run | Yrd Mat Sub Scr Machines Accessed 12 | . 2 . 10 Terminals 2 | . 2 . . Fabricators . | . . . . Repair Stations . | . . . . Recycling Units . | . . . . Scanalyzers . | . . . . Garrison Access . | . . . . Total Hacks 83 | . 8 . 75 Successful 79 | . 4 . 75 Failed 4 | . 4 . . Catastrophic 3 | . 3 . . Database Lockouts . | . . . . Manual 6 | . 6 . . Terminals 8 | . 8 . . Fabricators . | . . . . Repair Stations . | . . . . Recycling Units . | . . . . Scanalyzers . | . . . . Garrison Access . | . . . . Terminal Hacks 79 | . 4 . 75 Record 68 | . . . 68 Robot Analysis 6 | . . . 6 Prototype ID Bank 1 | . 1 . . Locate Traps 1 | . 1 . . Patrol Status 1 | . 1 . . Zone Layout 1 | . 1 . . Proto ID Catalog 1 | . . . 1 Fabricator Hacks . | . . . . Repair Station Hacks . | . . . . Recycling Unit Hacks . | . . . . Scanalyzer . | . . . . Garrison Access Hacks . | . . . . Unauthorized Hacks . | . . . . Terminals . | . . . . Fabricators . | . . . . Repair Stations . | . . . . Recycling Units . | . . . . Scanalyzers . | . . . . Garrison Access . | . . . . Data Cores Recovered 1 | . 1 . . Used 1 | . 1 . . Hacking Detections 2 | . 2 . . Full Trace Events . | . . . . Feedback Events . | . . . . Feedback Blocked . | . . . . Robot Schematics Acquired . | . . . . Robots Built . | . . . . Authchips . | . . . . Time . | . . . . Total Robot Build Rating . | . . . . Part Schematics Acquired . | . . . . Parts Built . | . . . . Authchips . | . . . . Time . | . . . . Total Part Build Rating . | . . . . Part Studies Acquired . | . . . . Parts Repaired . | . . . . Time . | . . . . Parts Recycled . | . . . . Recycled Matter . | . . . . Retrieved Matter . | . . . . Retrieved Components . | . . . . Parts Scanalyzed . | . . . . Part Schematics Acquired . | . . . . Parts Damaged . | . . . . Bothacking | -11 -10 -10 -7 ------------ Run | Yrd Mat Sub Scr Used RIF Installer . | . . . . Robots Hacked . | . . . . Non-combat . | . . . . Combat . | . . . . Robot Hacks Applied . | . . . . Relay Couplers Released . | . . . . Fabnet Peak Effective % . | . . . . Robots Rewired . | . . . . Allies Hacked . | . . . . Hacks Repelled . | . . . . Allies | -11 -10 -10 -7 -------- Run | Yrd Mat Sub Scr Total Allies . | . . . . Largest Group . | . . . . Highest-Rated Group . | . . . . Highest-Rated Ally . | . . . . Total Orders . | . . . . Ally Attacks . | . . . . Total Damage . | . . . . Kills . | . . . . Allies Corrupted . | . . . . Allies Melted 9 | . . . 9 Intel | -11 -10 -10 -7 ------- Run | Yrd Mat Sub Scr Active Infowar (turns) 1936 | 12 144 231 1549 IFF 1453 | . . . 1453 Seismic 483 | 12 144 231 96 Robot Analysis Total 6 | . . . 6 Derelict Logs Recovered 2 | . . 2 . Drone Launches . | . . . . Drone Recoveries . | . . . . Exploration | -11 -10 -10 -7 ------------- Run | Yrd Mat Sub Scr Turns Passed 2348 | 78 144 231 1895 Spaces Moved 2265 | 60 127 198 1880 Core 2 | 2 . . . Treads . | . . . . Legs 218 | . . . 218 Wheels 2045 | 58 127 198 1662 Hover . | . . . . Flight . | . . . . Fastest Speed 50 | 50 90 90 90 Average Speed 92 | 88 90 90 93 Slowest Speed 170 | 90 90 90 170 Overloaded Moves . | . . . . Propulsion Burnouts . | . . . . Robots Hopped . | . . . . Potential Cave-ins . | . . . . Cave-ins Triggered . | . . . . Exploration Rate (%) 34 | 4 21 19 92 Regions Visited 3 Branch Regions 2 Pre-discovered Areas 1 | . . . 1 Known Exits Taken . | . . . . Unknown Exits Taken 3 | 1 1 1 . Scrap Searched 7 | . . . 7 Spaces Dug . | . . . . Terrain Destroyed . | . . . . Melee . | . . . . Projectile . | . . . . AOE . | . . . . Terrain Rammed . | . . . . Walls Destroyed . | . . . . Machines Disabled . | . . . . Actions | -11 -10 -10 -7 --------- Run | Yrd Mat Sub Scr Total 2417 | 74 152 221 1970 Wait 41 | . 23 3 15 Move 2262 | 59 126 197 1880 Hop . | . . . . Pick Up 12 | 4 1 1 6 Fast Attach 9 | 7 . . 2 Attach 3 | . . . 3 Detach . | . . . . Swap 14 | . . 3 11 Drop 13 | . . 1 12 Fire 59 | 4 2 16 37 Melee 3 | . . . 3 Ram . | . . . . Kick . | . . . . Crush . | . . . . Escape Stasis . | . . . . Rewire 1 | . . . 1 Trap . | . . . . Miscellaneous . | . . . . Route ------- -11/Scrapyard -10/Materials -10/Subcaves (discovered 2 exits: [*Rec] / *Scr) -7/Scraptown (discovered 1 exit: [*Fac]) History --------- Turn | Location | Event 20 | -11/Scrapyard | Discovered new exit (range 15) 79 | -11/Scrapyard | Entered Materials 80 | -10/Materials | Met a group of wandering Federalists 219 | -10/Materials | Discovered new exit (range 5) 223 | -10/Materials | Entered Subcaves 224 | -10/Subcaves | Continued accompanying wandering Federalists (2) 229 | -10/Subcaves | Learned Materials emergency access door positions 249 | -10/Subcaves | Learned location of 1 exit from Materials 250 | -10/Subcaves | Shifting Twisted Machinery released Spk. Treads 274 | -10/Subcaves | Discovered new exit (range 10) 330 | -10/Subcaves | Build established: Mutant 442 | -10/Subcaves | Wandering Federalist uncovered a shortcut to Scraptown 454 | -10/Subcaves | Entered Scraptown 641 | -7/Scraptown | Heard Great Nut preacher, LISTEN AND RECITE! 859 | -7/Scraptown | Discovered new exit (range 5) 917 | -7/Scraptown | Visited Cave Peace 959 | -7/Scraptown | Visited UFD Registry 959 | -7/Scraptown | Registered with UFD as "Phasetail" 977 | -7/Scraptown | Visited Junk Repository 1000 | -7/Scraptown | Visited SPCMW 1028 | -7/Scraptown | Visited Spacefarers 1073 | -7/Scraptown | Visited Cyclists 1086 | -7/Scraptown | Entered Cyclist Reading Room 1224 | -7/Scraptown | Visited Junk Repository 1521 | -7/Scraptown | Visited Scrap Suit Storage 1526 | -7/Scraptown | Found Scrap Suit 1557 | -7/Scraptown | Visited DA-N13 Charitable Foundation 1578 | -7/Scraptown | Found DCF Scrap (29 items) 1639 | -7/Scraptown | Visited Research Penetration Think Tank 1660 | -7/Scraptown | Visited Cartography Club 1785 | -7/Scraptown | Visited Science Testing Area 1801 | -7/Scraptown | Visited Analyses Database 1831 | -7/Scraptown | Met Optimus 1831 | -7/Scraptown | Accepted into 0bPrime 1883 | -7/Scraptown | Visited Science Guys 1900 | -7/Scraptown | Civil war broke out across Scraptown 1964 | -7/Scraptown | Lost 5 allies 2031 | -7/Scraptown | Lost 3 allies 2037 | -7/Scraptown | Optimus destroyed in the chaos of civil war 2134 | -7/Scraptown | Visited Curators Association 2247 | -7/Scraptown | Lost 12 allies 2311 | -7/Scraptown | Core integrity fell below 50% 2348 | -7/Scraptown | Core integrity fell below 20% 2349 | -7/Scraptown | Destroyed by VJ-9IC(x) with Makeshift Spear Last Messages --------------- 02323_ Bolt penetrates Reinforced Barrier. 02326_ Penetrated by Bolt. 02331_ VZ6P9KKDPHQQ FCLP/2S4>TIGHY%L 02331_ Bolt penetrates Reinforced Barrier. 02332_ Ovr. Pulse Rifle destroyed. 02334_ Penetrated by Bolt. 02342_ Ovr. Barrage Gun recovered from malfunction. 02342_ Penetrated by Bolt. 02342_ Ovr. Titanium Leg destroyed. 02342_ Mak. Light Armor Plating destroyed. 02343_ Acquired 10 matter. 02343_ AB-CVT(j) cannibalizes Lgt. Deuterium Engine to repair Lgt. Deuterium Engine. 02344_ Penetrated by Bolt. 02344_ Ovr. Barrage Gun destroyed. 02345_ Imp. Deuterium Engine destroyed. 02347_ Penetrated by Bolt. 02347_ Ovr. Titanium Leg destroyed. 02347_ RT-958(l) Carbon-fiber Leg severed. Map ----- +----------------------------------------------------+ | #?????????????????? | | #?????????????????? | | ##### ##########"" """"#####?????????????????? | | ????## ##????????#" !%"#?????????????????????? | | ####?# #########?#" !/""#?????????????????????? | | #?# """"""""#?#" """#?????????????????????? | | ## ### " ""#?#" """#?????????????????????? | | "" """ "#?#"""""""#?????????????????????? | | " """ " ""#?#########?????????????????????? | | " " """"""""#???????????????????????????????? | | " ##"""####???????????????????????????????? | | " "" " ######???????????##??#??????????????????? | | " " #???#########???? ## ###????????????????? | | """""" #???# #??## # # #?????????######## | | ###### #???# "" "" #??# # #?????????#=**## | | ?????# #???# ""X"" #??# #?????????#==/## | | ###### #???# """"" #?? #?????????#*%[!!!% | | #???# """ #?? #?????????#/![[!=! | | #???# " #?## ??????????#!=!**%* | | ###### #???# #?# ????????????#[*=! =! | | ????# #???# #?#""""??????????????###### # | | ???### #########; ##### ##########???????#####[" | | ???# **![ %! =[[! #???????#"""" " | | #### !%==*==! =%!%! #???????#" | | X" # !!%!%! ! !%====! #???????# | | # [[%/% =%@=%= ! =#???????#!*[! | | # !== x[l=[!%= !%#???????#"%=%* | | # #################%[! ! #???#####"==! ! | | # #???????????????#h!! #???#"""*![%* | | # #???????????????#%! #???#""%!=!= | | # #???????????????# g #???#""""%![= | | #???????????????# j #???#""""!!%! | | # ###########?????# #????""""*=[= | | "" # ## #?????# ###??"""" !=! | | #### # """""" #????# ! ""#"#"""" =%[ | | ???# # "" "" #????# *%= """"#"""" ! | | #### # " " #????# ![=% ""#######!=[[ | | " # # " " #????# !%== ###?????#"%=%! | | # # " " #????# ![=! * #########"!=*% | | " " #???## = !%!=%!!!%[% ==%= | | # # "" "" #???#" [= ![*[%*![%*!%=%/= | | # # """""" #???## =%!= * ! !!* | | # ## #????#"[! !%%! =%! =%[ | | # ###############==%% = ! | | # =%[![%[%!! [% | | # =*=[%=%! | | # ==!=* ![! = ! | | " # *=!%!!!* *% = | | #### *![=%[= =* ! ! | | *%[=[!! [%!*=! #""""# =[ | +----------------------------------------------------+ Best States ------------- Heat Dissipation 25 Energy Generation 16 Energy Capacity 290 Matter Stores 300 Matter Capacity 300 Sight Range 16 Terrain Scan Density 10 Armor Coverage 100 Evasion (%) 57 Item Schematics ----------------- None Robot Schematics ------------------ None Fabricated ------------ Nothing Repaired ---------- Nothing Studied --------- None Alien Tech Used ----------------- None Achievements -------------- Armchair Analyst Bob, First Of His Name Civilization 2243 Link The Feds Plot Armor Strength In Numbers Challenges ------------ None Game ------ Seed HellfireCommScanner Manual? 0 Play Time 00:54:58 Cumulative 46.7 hours Start 2026.05.03 @ 14:12:18 End 2026.05.03 @ 15:13:09 Sessions 1 Manual Loads 0 Difficulty Rogue Special Mode None Game No. 44 Rogue 44 Adventurer 0 Explorer 0 Win Type - Total 0 Types 0/0/0/0/0/0/0/0/0/0 Lore% 22 Gallery% 29 Achievement% 22 Wizard Run 0 Options --------- Layout 2 ASCII 0 Keyboard 1 Movement Vi Keybinds 0 Fullscreen 2 Font 24/Smallcaps Map View 50x44 Zoom Use 0% Tactical HUD 1 Map Filters NONE Filters NONE Steam 1 RUN: 7f78a68c-97b3-4ca5-8ceb-d5dcd5dd867b